bitfinex-derivatives/quotes_BTCF0:USTF0_20250320
["timestamp","ask_amount","ask_price","bid_price","bid_amount"]
[1742435104040,0.5316098,85809.0,85808.0,1.8097684]
[1742435104334,0.4011,85809.0,85808.0,1.8097684]
[1742435104635,0.4011,85809.0,85808.0,1.8486684]
[1742435105136,4e-08,85818.0,85817.0,0.0932011]
[1742435105335,4e-08,85818.0,85817.0,0.7302211]
[1742435105536,4e-08,85818.0,85817.0,0.8902211]
[1742435106027,4e-08,85818.0,85817.0,2.3902211]
[1742435106228,0.13438087,85826.0,85825.0,0.0931924]
[1742435106541,7e-08,85826.0,85825.0,0.9347524]
[1742435106743,0.15463704,85835.0,85834.0,0.0931826]
[1742435107039,0.15463704,85835.0,85834.0,1.1547026]
[1742435107233,0.07142493,85835.0,85834.0,2.66620736]
[1742435107429,0.00017484,85843.0,85842.0,0.0931739]
[1742435107631,0.3608,85883.0,85842.0,1.26532]
[1742435107836,0.0379,85864.0,85863.0,0.0931511]
[1742435108043,0.0379,85864.0,85863.0,0.2239911]
[1742435108233,0.0379,85864.0,85863.0,1.7239911]
[1742435108831,0.0379,85864.0,85863.0,2.0039911]
[1742435109940,0.0379,85864.0,85863.0,2.3647911]
[1742435110734,0.0379,85864.0,85863.0,2.0745511]
[1742435111142,0.0379,85864.0,85862.0,0.12056]
[1742435111440,0.1330511,85863.0,85862.0,0.2137111]
[1742435111642,0.1330511,85863.0,85862.0,0.0931511]
[1742435112242,0.0399,85863.0,85862.0,0.0931511]
[1742435112430,0.1330511,85863.0,85862.0,0.1324511]
[1742435112626,0.0379,85864.0,85863.0,0.0931511]
[1742435112838,0.0379,85864.0,85863.0,0.4424511]
[1742435113044,0.0399,85875.0,85871.0,0.0931425]
[1742435113243,0.0399,85875.0,85871.0,0.2135825]
[1742435114226,0.3608,85876.0,85871.0,0.5235825]
[1742435114436,0.038,85874.0,85871.0,0.5235825]
[1742435115042,0.038,85874.0,85871.0,0.5435825]
[1742435115341,0.0406,85883.0,85871.0,0.5435825]
[1742435115545,0.038,85882.0,85871.0,0.5435825]
[1742435115841,0.038,85882.0,85871.0,2.2315825]
[1742435116242,0.00117474,85872.0,85871.0,2.2315825]
[1742435116941,0.038,85882.0,85881.0,0.0931316]
[1742435117137,0.038,85882.0,85881.0,1.0040916]
[1742435117740,0.038,85882.0,85881.0,2.5040916]
[1742435118734,0.038,85882.0,85881.0,2.5940916]
[1742435119445,0.02954179,85882.0,85881.0,2.5940916]
[1742435119836,0.12267229,85882.0,85881.0,0.3630916]
[1742435120035,0.02954179,85882.0,85881.0,0.3630916]
[1742435120545,0.02954179,85882.0,85881.0,1.8630916]
[1742435121043,0.03054179,85882.0,85881.0,1.8630916]
[1742435121343,0.03154179,85882.0,85881.0,1.8630916]
[1742435122542,0.03054179,85882.0,85881.0,1.8628916]
[1742435122942,0.12367229,85882.0,85881.0,0.15]
[1742435123140,0.09315,85864.0,85863.0,0.093189]
[1742435123432,0.09315,85864.0,85863.0,0.093149]
[1742435124238,0.09315,85864.0,85863.0,0.095149]
[1742435124638,0.0385,85865.0,85864.0,0.09315]
[1742435124841,0.0385,85865.0,85864.0,0.10315]
[1742435125044,0.0385,85865.0,85864.0,0.13985]
[1742435125239,0.0385,85865.0,85864.0,0.17805]
[1742435126243,0.038,85870.0,85869.0,0.0931446]
[1742435126547,0.00017474,85872.0,85871.0,0.0931425]
[1742435126751,0.039,85881.0,85880.0,0.0931327]
[1742435127048,0.1712316,85881.0,85880.0,1.7232927]
[1742435127442,0.1712316,85881.0,85880.0,1.9632927]
[1742435127651,0.3608,85886.0,85885.0,0.0931273]
[1742435127946,0.3608,85886.0,85885.0,0.3831273]
[1742435128343,0.039,85892.0,85891.0,0.0931208]
[1742435128548,0.0781,85892.0,85891.0,0.6532808]
[1742435129248,0.00013474,85894.0,85893.0,0.0931186]
[1742435129443,0.00013474,85894.0,85893.0,0.9939186]
[1742435130145,0.00013474,85894.0,85893.0,2.4939186]
[1742435131350,0.00713474,85894.0,85893.0,2.4939186]
[1742435133441,4e-08,85894.0,85893.0,2.6439186]
[1742435133646,0.0776,85913.0,85912.0,0.093098]
[1742435133847,0.0776,85913.0,85912.0,0.502858]
[1742435134844,0.0826,85913.0,85912.0,0.502858]
[1742435135045,0.0876,85913.0,85912.0,0.502858]
[1742435136052,0.0876,85913.0,85912.0,2.002858]
[1742435136453,0.0876,85913.0,85912.0,0.502858]
[1742435137056,0.0876,85913.0,85912.0,2.002858]
[1742435140048,0.0876,85913.0,85912.0,2.112858]
[1742435140351,0.01,85913.0,85912.0,2.473658]
[1742435140554,0.00017463,85921.0,85920.0,0.0930893]
[1742435140758,3e-08,85921.0,85920.0,1.2830093]
[1742435141648,0.01000003,85921.0,85920.0,1.2840093]
[1742435141844,3e-08,85921.0,85920.0,2.7840093]
[1742435142454,3e-08,85921.0,85920.0,2.9340093]
[1742435142658,3e-08,85921.0,85920.0,2.7840093]
[1742435142957,3e-08,85921.0,85920.0,2.9340093]
[1742435143155,3e-08,85921.0,85920.0,2.8148893]
[1742435143344,3e-08,85921.0,85920.0,2.7839293]
[1742435143748,0.0931955,85929.0,85928.0,0.0930807]
[1742435143944,0.0931955,85929.0,85928.0,0.3022407]
[1742435144659,0.0001159,85929.0,85928.0,0.3022407]
[1742435145265,0.0931955,85929.0,85928.0,0.1030807]
[1742435145653,0.0931955,85929.0,85928.0,0.0930807]
[1742435145854,0.0930807,85928.0,85927.0,4e-05]
[1742435146064,0.2115807,85928.0,85927.0,0.0931218]
[1742435146263,0.2115807,85928.0,85927.0,0.0930818]
[1742435146478,0.139635,85921.0,85920.0,0.1396287]
[1742435146760,0.0465446,85921.0,85920.0,0.1396287]
[1742435147168,0.0931056,85906.0,85905.0,0.093105]
[1742435147369,0.0931028,85908.0,85907.0,0.0931034]
[1742435148372,0.1329028,85908.0,85907.0,0.3731034]
[1742435148762,0.1329028,85908.0,85907.0,0.28]
[1742435149058,0.1329028,85908.0,85905.0,1.5]
[1742435149059,0.0931045,85906.0,85905.0,1.5]
[1742435149261,0.0931045,85906.0,85905.0,1.5931056]
[1742435151874,0.44104001,85908.0,85907.0,0.0931034]
[1742435152066,0.4394,85908.0,85907.0,0.3531034]
[1742435152573,0.0398,85908.0,85907.0,0.3531034]
[1742435152770,0.12068001,85915.0,85907.0,0.3531034]
[1742435152771,0.3608,85914.0,85907.0,1.97]
[1742435152966,0.0769,85914.0,85913.0,0.0930969]
[1742435153270,0.0769,85914.0,85913.0,0.6421369]
[1742435153473,0.0385,85914.0,85913.0,0.6421369]
[1742435153673,0.0385,85914.0,85913.0,2.1421369]
[1742435153862,0.0385,85914.0,85913.0,2.1796369]
[1742435155064,0.037,85923.0,85922.0,0.0930872]
[1742435155272,0.1300861,85923.0,85922.0,0.0930872]
[1742435156265,0.0930937,85916.0,85915.0,0.0465461]
[1742435156470,0.4538937,85916.0,85915.0,0.0465461]
[1742435157073,0.5704937,85916.0,85915.0,0.0465461]
[1742435157466,0.0930948,85915.0,85914.0,4e-05]
[1742435157866,0.1695948,85915.0,85914.0,4e-05]
[1742435158266,0.1695948,85915.0,85907.0,0.0931425]
[1742435158267,0.0931023,85908.0,85907.0,0.0931025]
[1742435158571,0.4539023,85908.0,85907.0,0.0931025]
[1742435159161,0.5304023,85908.0,85907.0,0.0931025]
[1742435160375,0.0931045,85906.0,85905.0,0.0465523]
[1742435160568,0.0931056,85905.0,85904.0,0.00017463]
[1742435160771,0.1314056,85905.0,85904.0,0.00017463]
[1742435161490,0.0931218,85890.0,85889.0,1.5]
[1742435161777,0.4539218,85890.0,85889.0,1.5]
[1742435161971,0.4539218,85890.0,85882.0,4e-05]
[1742435161972,0.0931294,85883.0,85882.0,4e-05]
[1742435162276,0.0931294,85883.0,85881.0,0.27680565]
[1742435162277,0.0931305,85882.0,85881.0,0.27676565]
[1742435162478,0.1695305,85882.0,85881.0,0.27676565]
[1742435162667,0.18124961,85882.0,85881.0,0.27676565]
[1742435162862,0.093137,85876.0,85875.0,0.36990335]
[1742435163071,0.089137,85876.0,85875.0,0.36990335]
[1742435163270,0.207817,85876.0,85875.0,0.36990335]
[1742435163469,0.568617,85876.0,85875.0,0.27676565]
[1742435163670,0.645317,85876.0,85875.0,0.27676565]
[1742435164881,0.645317,85876.0,85875.0,0.36990375]
[1742435165178,0.55606,85876.0,85875.0,0.36990375]
[1742435165381,0.649197,85876.0,85875.0,0.37190375]
[1742435165576,0.649197,85876.0,85875.0,0.37390375]
[1742435165768,0.4375,85876.0,85875.0,0.37390375]
[1742435166069,0.530637,85876.0,85875.0,0.44880375]
[1742435166477,0.530637,85876.0,85875.0,1.94880375]
[1742435166665,0.530637,85876.0,85875.0,1.6720381]
[1742435168481,0.4375,85876.0,85875.0,1.6720381]
[1742435168871,0.530637,85876.0,85875.0,1.6720381]
[1742435170273,0.530637,85876.0,85875.0,1.504]
[1742435170573,0.530637,85876.0,85875.0,0.004]
[1742435171074,0.0465745,85865.0,85862.0,0.0931468]
[1742435171376,0.0393,85864.0,85863.0,0.0931511]
[1742435171569,0.0781,85864.0,85863.0,0.1791511]
[1742435171774,0.0388,85864.0,85863.0,0.1791511]
[1742435171976,0.3608,85866.0,85864.0,0.09315]
[1742435172178,0.3608,85866.0,85865.0,0.093149]
[1742435172375,0.4539479,85866.0,85865.0,0.272549]
[1742435173272,0.4539479,85866.0,85865.0,1.776549]
[1742435173674,0.4539479,85866.0,85865.0,0.1834]
[1742435173982,0.4539479,85866.0,85865.0,0.0834]
[1742435174180,0.4539479,85866.0,85865.0,0.176549]
[1742435174378,0.3608,85866.0,85865.0,0.176549]
[1742435174684,0.4083,85880.0,85873.0,0.0931403]
[1742435174982,0.09331383,85874.0,85873.0,0.1131403]
[1742435175782,0.07997463,85874.0,85873.0,0.1894403]
[1742435176083,0.09331383,85874.0,85873.0,0.1914403]
[1742435176875,0.00017463,85874.0,85873.0,0.1944403]
[1742435178073,0.09331383,85874.0,85873.0,0.1944403]
[1742435178676,0.09331383,85874.0,85873.0,1.6944403]
[1742435178983,0.00017463,85874.0,85873.0,1.6944403]
[1742435180477,0.3608,85884.0,85877.0,0.0465677]
[1742435180781,0.3608,85898.0,85893.0,0.0931186]
[1742435180782,0.0405,85894.0,85893.0,0.0931186]
[1742435180984,0.3608,85898.0,85897.0,0.0931143]
[1742435181382,0.3608,85898.0,85897.0,1.5931143]
[1742435181977,0.4539132,85898.0,85897.0,1.5931143]
[1742435182585,0.3608,85908.0,85905.0,0.0931056]
[1742435183187,0.4539028,85908.0,85905.0,0.0931056]
[1742435183485,0.4539028,85908.0,85905.0,0.1665056]
[1742435183486,0.3608,85908.0,85905.0,0.1665056]
[1742435183680,0.00017463,85906.0,85905.0,0.2944256]
[1742435183882,0.00617463,85906.0,85905.0,0.2944256]
[1742435184093,0.00617463,85906.0,85905.0,0.6844256]
[1742435184590,0.00017463,85906.0,85905.0,2.1844256]
[1742435186489,0.00117463,85906.0,85905.0,2.1844256]
[1742435186875,0.00117463,85906.0,85905.0,2.0665056]
[1742435187083,0.00117463,85906.0,85905.0,2.1844256]
[1742435187890,0.00117463,85906.0,85905.0,0.6844256]
[1742435188384,0.00117463,85906.0,85905.0,2.1844256]
[1742435193087,0.00117463,85906.0,85905.0,2.0665056]
[1742435193287,0.00117463,85906.0,85905.0,2.1844256]
[1742435195688,0.00117463,85906.0,85905.0,2.0665056]
[1742435195883,0.09427913,85906.0,85905.0,1.9044256]
[1742435196595,0.45507913,85906.0,85905.0,1.7131056]
[1742435197197,0.45507913,85906.0,85905.0,1.6031056]
[1742435197495,0.53107913,85906.0,85905.0,1.6031056]
[1742435197682,0.43797463,85906.0,85905.0,1.6031056]
[1742435198094,0.43797463,85906.0,85905.0,1.8631056]
[1742435198398,0.36197463,85906.0,85905.0,1.9374056]
[1742435198797,0.36197463,85906.0,85905.0,2.0742056]
[1742435199599,0.00117463,85906.0,85905.0,2.0742056]
[1742435200792,0.00117463,85906.0,85905.0,2.0374056]
[1742435201996,0.45507913,85906.0,85905.0,2.0374056]
[1742435202191,0.36197463,85906.0,85905.0,2.0374056]
[1742435202702,0.00117463,85906.0,85905.0,2.0374056]
[1742435203001,0.07647463,85906.0,85905.0,2.0374056]
[1742435203393,0.07647463,85906.0,85905.0,2.1552856]
[1742435203898,0.00117463,85906.0,85905.0,2.1552856]
[1742435213010,0.05007463,85906.0,85905.0,2.1552856]
[1742435213710,0.05007463,85906.0,85905.0,2.5160856]
[1742435214110,0.00117463,85906.0,85905.0,2.5160856]
[1742435217408,3e-08,85906.0,85905.0,2.5160856]
[1742435220009,3e-08,85906.0,85905.0,1.9999056]
[1742435220211,3e-08,85906.0,85905.0,2.0809856]
[1742435225209,3e-08,85906.0,85905.0,2.1847856]
[1742435226613,3e-08,85906.0,85905.0,2.5455856]
[1742435229221,0.20973702,85907.0,85906.0,0.0931045]
[1742435229417,0.18046302,85912.0,85911.0,0.0930991]
[1742435229614,0.18046302,85912.0,85911.0,1.2638991]
[1742435229815,0.18046302,85912.0,85911.0,2.7638991]
[1742435230219,0.18046302,85912.0,85911.0,2.8645991]
[1742435231422,0.18246302,85912.0,85911.0,2.8645991]
[1742435231815,0.002,85912.0,85911.0,2.9824791]
[1742435232218,0.0531,85912.0,85911.0,2.9824791]
[1742435234125,0.002,85912.0,85911.0,2.9824791]
[1742435234321,0.0001159,85914.0,85913.0,0.0930969]
[1742435234527,0.0001159,85914.0,85913.0,0.9030969]
[1742435235221,0.0001159,85914.0,85913.0,2.4030969]
[1742435235622,0.0021159,85914.0,85913.0,2.4030969]
[1742435237322,0.0952117,85914.0,85913.0,2.05]
[1742435237523,0.0952117,85914.0,85913.0,0.55]
[1742435237929,0.0952117,85914.0,85913.0,2.1430969]
[1742435238125,0.21027306,85914.0,85913.0,1.78]
[1742435238519,0.38501726,85914.0,85890.0,0.0519]
[1742435238724,0.0931186,85896.0,85895.0,0.1396693]
[1742435238931,0.0931186,85896.0,85895.0,1.9396693]
[1742435239532,0.1959186,85896.0,85895.0,1.9396693]
[1742435239924,0.1959186,85896.0,85895.0,1.9397493]
[1742435241329,0.1959186,85896.0,85895.0,1.542]
[1742435241729,0.0931284,85884.0,85875.0,0.01139973]
[1742435241927,0.4539284,85884.0,85882.0,0.09313]
[1742435242228,0.4499284,85884.0,85883.0,1.80144621]
[1742435242635,0.6063284,85884.0,85883.0,1.80144621]
[1742435243127,0.6063284,85884.0,85883.0,1.5981294]
[1742435243524,0.6063284,85884.0,85883.0,1.505]
[1742435243728,0.6063284,85884.0,85883.0,0.005]
[1742435243930,0.6063284,85884.0,85883.0,0.009]
[1742435244329,0.7563284,85884.0,85883.0,0.009]
[1742435244533,0.7563284,85884.0,85881.0,4e-05]
[1742435244534,0.093137,85876.0,85869.0,0.0465719]
[1742435244730,0.571777,85876.0,85875.0,0.09331273]
[1742435245535,0.679177,85876.0,85875.0,0.09331273]
[1742435245730,0.69068691,85876.0,85875.0,0.09331273]
[1742435247039,0.84068691,85876.0,85875.0,0.00017463]
[1742435247238,0.0931566,85860.0,85859.0,0.1397253]
[1742435247534,0.4539566,85860.0,85859.0,0.1597253]
[1742435247735,0.4529566,85860.0,85859.0,0.2528755]
[1742435248139,0.4529566,85860.0,85859.0,1.6597253]
[1742435248324,0.4539566,85860.0,85859.0,1.505]
[1742435248526,0.5589566,85860.0,85859.0,0.005]
[1742435248736,0.5599566,85860.0,85859.0,0.006]
[1742435248931,0.5599566,85860.0,85859.0,1.506]
[1742435249339,0.57145367,85860.0,85859.0,0.006]
[1742435249730,0.57045367,85860.0,85859.0,0.006]
[1742435250241,0.0931598,85855.0,85854.0,0.0932009]
[1742435250431,0.2110398,85855.0,85854.0,0.0931609]
[1742435250634,0.11788,85855.0,85854.0,0.0931609]
[1742435250838,0.11388,85855.0,85854.0,0.0931609]
[1742435251136,0.2070398,85855.0,85854.0,0.0931609]
[1742435251542,0.0931573,85858.0,85857.0,0.0931555]
[1742435251729,0.69005218,85860.0,85859.0,0.0931555]
[1742435251932,0.68833217,85860.0,85859.0,0.0931555]
[1742435252141,0.105,85860.0,85859.0,0.1031555]
[1742435252837,0.1981544,85860.0,85859.0,0.1031555]
[1742435254543,0.1981544,85860.0,85859.0,0.1051555]
[1742435254929,0.1981544,85860.0,85859.0,0.0951555]
[1742435257737,0.105,85860.0,85859.0,0.0951555]
[1742435258045,0.1981544,85860.0,85859.0,1.5951555]
[1742435258340,0.105,85860.0,85859.0,1.5951555]
[1742435258537,0.1981544,85860.0,85859.0,1.7035555]
[1742435258736,0.1981544,85860.0,85859.0,1.7135555]
[1742435258941,0.00164001,85864.0,85863.0,0.0931511]
[1742435259133,0.0526,85870.0,85867.0,0.0931468]
[1742435259332,0.3608,85871.0,85867.0,0.2331468]
[1742435259544,0.3608,85871.0,85867.0,0.4831468]
[1742435260341,0.0465719,85870.0,85867.0,0.39]
[1742435260543,0.09315,85864.0,85863.0,0.003]
[1742435260846,0.21107,85864.0,85863.0,0.0961511]
[1742435261543,0.31577,85864.0,85863.0,0.0961511]
[1742435262033,0.31577,85864.0,85863.0,0.003]
[1742435262644,0.0911511,85863.0,85862.0,0.0931518]
[1742435263038,0.1975511,85863.0,85862.0,0.0931518]
[1742435263635,0.1945511,85863.0,85862.0,0.0931518]
[1742435264344,0.1945511,85863.0,85862.0,0.1458518]
[1742435265341,0.0931522,85862.0,85861.0,0.0528]
[1742435265542,0.0931522,85862.0,85861.0,0.1459533]
[1742435265848,0.2001522,85862.0,85861.0,0.1459533]
[1742435266643,0.2001522,85862.0,85861.0,0.0931533]
[1742435267039,0.2001522,85862.0,85860.0,4e-05]
[1742435267040,0.0931533,85861.0,85860.0,4e-05]
[1742435267349,0.4539533,85861.0,85860.0,0.0931944]
[1742435267643,0.5587533,85861.0,85860.0,0.0931944]
[1742435268245,0.5587533,85861.0,85860.0,0.1476944]
[1742435270945,0.57022256,85861.0,85860.0,0.05454]
[1742435271346,0.0465784,85858.0,85854.0,0.0465804]
[1742435271551,0.0931598,85855.0,85854.0,0.0465804]
[1742435271743,0.0931598,85855.0,85851.0,0.00017463]
[1742435271744,0.0465809,85854.0,85851.0,0.00017463]
[1742435271944,0.0931631,85852.0,85851.0,0.00017463]
[1742435272344,0.2565631,85852.0,85851.0,0.00017463]
[1742435276553,0.5717,85852.0,85839.0,0.0532]
[1742435276740,0.0931815,85835.0,85834.0,0.0551]
[1742435276940,0.5719015,85835.0,85834.0,0.0551]
[1742435277752,0.6822015,85835.0,85834.0,0.1083]
[1742435277943,0.0931826,85834.0,85833.0,8e-05]
[1742435278150,0.10463012,85834.0,85833.0,8e-05]
[1742435278353,0.1397782,85833.0,85832.0,0.0931844]
[1742435278543,0.1397782,85833.0,85832.0,0.0932244]
[1742435278852,0.2498782,85833.0,85832.0,0.0932244]
[1742435279345,0.36448,85835.0,85834.0,0.0931826]
[1742435279553,0.3628,85835.0,85834.0,0.0931826]
[1742435279848,0.3628,85835.0,85834.0,0.1931826]
[1742435280053,0.3618,85835.0,85834.0,0.1931826]
[1742435280353,0.3608,85835.0,85834.0,1.6931826]
[1742435280861,0.3618,85835.0,85834.0,1.6931826]
[1742435281045,0.3618,85835.0,85834.0,1.9731826]
[1742435282144,0.4549815,85835.0,85834.0,1.9731826]
[1742435282753,0.4549815,85835.0,85834.0,1.6931826]
[1742435282957,0.4559815,85835.0,85834.0,1.6931826]
[1742435283342,0.3608,85855.0,85854.0,0.0931609]
[1742435283648,0.4539598,85855.0,85854.0,0.0931609]
[1742435284351,0.4539598,85855.0,85854.0,1.5931609]
[1742435284549,0.4539598,85855.0,85854.0,1.7030609]
[1742435284746,0.4539598,85855.0,85854.0,0.2030609]
[1742435285151,0.0931685,85848.0,85846.0,0.00017473]
[1742435285344,0.0931685,85848.0,85847.0,0.1481678]
[1742435285544,0.4539685,85848.0,85847.0,0.2023678]
[1742435287443,0.4539685,85848.0,85847.0,0.0931685]
[1742435287649,0.3608,85866.0,85854.0,0.0931609]
[1742435287956,0.04675033,85863.0,85854.0,0.1031609]
[1742435288254,0.0465761,85862.0,85854.0,0.1031609]
[1742435288556,0.4539598,85855.0,85854.0,0.1031609]
[1742435288755,0.4539598,85855.0,85854.0,0.2083609]
[1742435289647,0.02462346,85869.0,85854.0,0.31]
[1742435289849,0.02411611,85872.0,85862.0,0.0931522]
[1742435290152,0.02411611,85872.0,85862.0,0.1131522]
[1742435290341,0.4073739,85866.0,85862.0,0.1131522]
[1742435290547,0.09332583,85863.0,85862.0,0.1131522]
[1742435290749,0.09332583,85863.0,85862.0,1.7267522]
[1742435291052,0.09332583,85863.0,85862.0,0.1336]
[1742435291247,0.0931609,85854.0,85853.0,0.0466207]
[1742435291443,0.0931609,85854.0,85853.0,0.0566207]
[1742435291848,0.0931609,85854.0,85853.0,0.103162]
[1742435292161,0.0931631,85852.0,85851.0,0.0465818]
[1742435292355,0.10508272,85852.0,85851.0,0.0465818]
[1742435293056,0.10508272,85852.0,85851.0,0.1034818]
[1742435293257,0.02607134,85862.0,85856.0,0.0465789]
[1742435293450,0.00217473,85863.0,85862.0,0.0931522]
[1742435293654,0.00217473,85863.0,85862.0,0.2914322]
[1742435293957,0.00017473,85863.0,85862.0,1.9553322]
[1742435294358,0.00017473,85863.0,85862.0,1.8370522]
[1742435294565,0.00217473,85863.0,85862.0,1.7770522]
[1742435295353,0.09532583,85863.0,85862.0,1.7770522]
[1742435296060,0.09532583,85863.0,85862.0,0.1193]
[1742435296360,0.00417473,85863.0,85862.0,0.5732522]
[1742435296573,0.00417473,85863.0,85862.0,1.0715322]
[1742435296574,1e-08,85863.0,85862.0,1.0715322]
[1742435296750,0.4558817,85882.0,85881.0,0.0931316]
[1742435296952,0.4558817,85882.0,85881.0,0.4539316]
[1742435297152,0.3627505,85882.0,85881.0,0.4539316]
[1742435297363,0.3627505,85882.0,85881.0,0.8147316]
[1742435297849,0.3627505,85882.0,85881.0,1.2553316]
[1742435298054,0.3647505,85882.0,85881.0,1.2653316]
[1742435299155,0.002,85882.0,85881.0,1.2653316]
[1742435299556,0.004,85882.0,85881.0,1.2653316]
[1742435299956,0.46722588,85888.0,85887.0,0.0931251]
[1742435300157,0.46558587,85888.0,85887.0,0.4931251]
[1742435300454,0.22934952,85904.0,85901.0,0.0931078]
[1742435300455,0.0931091,85902.0,85901.0,0.0931078]
[1742435300650,0.0931091,85902.0,85901.0,0.4539078]
[1742435300851,0.13624242,85904.0,85903.0,0.0931078]
[1742435301465,0.13624242,85904.0,85903.0,0.2030078]
[1742435302367,0.22934912,85904.0,85903.0,0.2030078]
[1742435302665,0.23134912,85904.0,85903.0,0.2030078]
[1742435303162,0.23134912,85904.0,85903.0,0.0536]
[1742435303163,0.0951067,85904.0,85903.0,0.0536]
[1742435303559,0.0971067,85904.0,85903.0,0.0536]
[1742435303966,0.004,85904.0,85903.0,0.1467078]
[1742435304158,0.004,85904.0,85903.0,0.2543078]
[1742435304355,0.004,85904.0,85903.0,0.2643078]
[1742435304867,0.005,85904.0,85903.0,0.2643078]
[1742435305662,0.003,85904.0,85903.0,0.2643078]
[1742435305863,0.006,85904.0,85903.0,0.2643078]
[1742435306261,0.003,85904.0,85903.0,0.5343078]
[1742435306457,0.001,85904.0,85903.0,0.5343078]
[1742435310875,0.00011556,85912.0,85911.0,0.0930991]
[1742435311069,0.00011556,85912.0,85911.0,0.4538991]
[1742435311877,0.00011556,85912.0,85911.0,0.5628991]
[1742435312180,0.00311556,85912.0,85911.0,0.5628991]
[1742435312765,0.00311556,85912.0,85911.0,0.5728991]
[1742435313079,0.00611556,85912.0,85911.0,2.1907391]
[1742435314981,0.00611556,85912.0,85911.0,2.2024033]
[1742435315478,0.00611556,85912.0,85911.0,2.0728991]
[1742435315685,0.09921356,85912.0,85911.0,0.3608]
[1742435316072,0.0931056,85905.0,85904.0,0.0931065]
[1742435316579,0.10476396,85905.0,85904.0,0.0931065]
[1742435316870,0.10476396,85905.0,85898.0,0.3608]
[1742435316871,0.0931153,85896.0,85895.0,0.09329022]
[1742435319087,0.0931153,85896.0,85895.0,0.09529022]
[1742435319281,0.0931153,85896.0,85895.0,0.00217462]
[1742435319668,0.0931153,85896.0,85895.0,0.09529102]
[1742435319873,0.0961153,85896.0,85895.0,0.09429102]
[1742435320378,0.0991153,85896.0,85895.0,0.09329102]
[1742435320985,0.0961153,85896.0,85895.0,0.09329102]
[1742435321282,0.1001153,85896.0,85895.0,0.09329102]
[1742435322783,0.1021153,85896.0,85895.0,0.09329102]
[1742435323475,0.0971153,85896.0,85895.0,0.09329102]
[1742435323672,0.1021153,85896.0,85895.0,0.09329102]
[1742435324477,0.1011153,85896.0,85895.0,0.09329102]
[1742435324969,0.008,85896.0,85895.0,0.20619102]
[1742435325171,0.1221,85896.0,85895.0,0.20619102]
[1742435325586,0.1221,85896.0,85895.0,1.70619102]
[1742435327079,0.2132153,85896.0,85895.0,1.70619102]
[1742435327591,0.1191,85896.0,85895.0,1.70619102]
[1742435327982,0.2122153,85896.0,85895.0,0.20619102]
[1742435331287,0.1191,85896.0,85895.0,0.20619102]
[1742435331482,0.005,85896.0,85895.0,0.61089102]
[1742435331883,0.0465466,85917.0,85908.0,0.0931023]
[1742435332183,0.0931004,85910.0,85908.0,0.4539023]
[1742435332383,0.0931005,85910.0,85909.0,0.0931002]
[1742435332588,0.0931005,85910.0,85909.0,0.1468002]
[1742435333283,0.1449005,85910.0,85909.0,0.1985002]
[1742435333477,0.0518,85910.0,85909.0,0.1985002]
[1742435333685,0.0538,85910.0,85909.0,0.21041051]
[1742435333886,0.0558,85910.0,85909.0,0.1985002]
[1742435334586,0.1489002,85910.0,85909.0,0.1985002]
[1742435335589,0.16074749,85910.0,85909.0,0.1985002]
[1742435336382,0.15874749,85910.0,85909.0,0.1985002]
[1742435336583,0.16074749,85910.0,85909.0,0.0931002]
[1742435336990,0.0931045,85906.0,85905.0,0.3608]
[1742435337183,0.2109445,85906.0,85905.0,0.3608]
[1742435337990,0.2635445,85906.0,85905.0,0.3608]
[1742435338191,0.2645445,85906.0,85905.0,0.3608]
[1742435338785,0.2655445,85906.0,85905.0,0.3608]
[1742435339090,0.2655445,85906.0,85905.0,0.4539056]
[1742435342693,0.002,85906.0,85905.0,2.0627056]
[1742435342992,0.002,85906.0,85905.0,2.4335056]
[1742435344201,0.001,85906.0,85905.0,2.4335056]
[1742435344493,0.00011556,85912.0,85911.0,0.0930991]
[1742435344795,0.00011556,85912.0,85911.0,0.1030991]
[1742435345296,0.00011556,85912.0,85911.0,1.6030991]
[1742435345596,0.2006883,85921.0,85920.0,0.0930893]
[1742435346193,0.2006883,85921.0,85920.0,0.1471893]
[1742435346394,0.2006883,85921.0,85920.0,0.2001893]
[1742435346790,0.2056883,85921.0,85920.0,0.2001893]
[1742435346992,0.2106883,85921.0,85920.0,0.2001893]
[1742435349795,0.2106883,85921.0,85920.0,0.0541]
[1742435349992,0.2106883,85921.0,85900.0,0.3608]
[1742435349993,0.0931045,85906.0,85900.0,0.3608]
[1742435350199,0.0931045,85906.0,85902.0,0.0931084]
[1742435350594,0.0931045,85906.0,85905.0,0.4539056]
[1742435351391,0.0931045,85906.0,85905.0,0.3608]
[1742435352187,0.0941045,85906.0,85905.0,0.3608]
[1742435352495,0.0951045,85906.0,85905.0,0.3608]
[1742435352695,0.2031045,85906.0,85905.0,0.3608]
[1742435353794,0.21468157,85906.0,85905.0,0.3608]
[1742435354100,0.21468157,85906.0,85905.0,0.4539056]
[1742435354300,0.21468157,85906.0,85905.0,0.1487056]
[1742435355601,0.21468157,85906.0,85905.0,0.2027056]
[1742435356618,0.0931153,85896.0,85893.0,0.0931181]
[1742435356897,0.0931153,85896.0,85895.0,0.09329102]
[1742435357690,0.1995153,85896.0,85895.0,0.14579102]
[1742435357890,0.1995153,85896.0,85895.0,0.14679102]
[1742435358392,0.1995153,85896.0,85895.0,0.14879102]
[1742435358990,0.1995153,85896.0,85895.0,0.00317462]
[1742435359598,0.1995153,85896.0,85895.0,0.09629102]
[1742435361202,0.1064,85896.0,85895.0,0.09629102]
[1742435361403,0.0931124,85899.0,85898.0,0.0931121]
[1742435361608,0.0931153,85897.0,85896.0,0.0931148]
[1742435362005,0.2048153,85897.0,85896.0,0.0931148]
[1742435362602,0.2038153,85897.0,85896.0,0.0931148]
[1742435363008,0.2038153,85897.0,85896.0,0.0941148]
[1742435364117,0.2038153,85897.0,85896.0,0.4549148]
[1742435365005,0.2038153,85897.0,85896.0,0.4559148]
[1742435374816,0.0465528,85905.0,85902.0,0.0931083]
[1742435375011,0.0465528,85905.0,85904.0,0.4539067]
[1742435375314,0.0931023,85908.0,85907.0,0.0931023]
[1742435375704,0.1178,85911.0,85910.0,0.0931002]
[1742435375906,0.2108991,85911.0,85910.0,0.0931002]
[1742435376111,0.0930991,85911.0,85910.0,0.0931002]
[1742435377112,0.1468991,85911.0,85910.0,0.0931002]
[1742435377602,0.10490297,85914.0,85913.0,0.0930969]
[1742435377910,0.0930958,85914.0,85913.0,0.1461969]
[1742435378308,0.10491431,85914.0,85913.0,0.1461969]
[1742435379304,0.11091431,85914.0,85913.0,0.1461969]
[1742435380618,0.0990958,85914.0,85913.0,0.1461969]
[1742435382015,0.0990958,85914.0,85913.0,0.5069969]